bitfinex/quotes_BTCUSD_20241128
["timestamp","ask_amount","ask_price","bid_price","bid_amount"]
[1732815380556,0.105005,95234.0,95232.0,0.09502424]
[1732815380771,0.15,95235.0,95232.0,0.09502424]
[1732815380985,0.105005,95233.0,95232.0,0.0008618]
[1732815381460,0.105005,95233.0,95232.0,0.00743114]
[1732815384406,0.106005,95233.0,95232.0,0.00743114]
[1732815384849,0.107005,95233.0,95232.0,0.00743114]
[1732815390528,0.20985021,95233.0,95232.0,0.00743114]
[1732815390760,0.48855021,95233.0,95232.0,0.0008618]
[1732815391016,0.51155021,95233.0,95232.0,0.0008618]
[1732815405194,0.002,95233.0,95232.0,0.0008618]
[1732815405408,0.152,95233.0,95232.0,0.0828618]
[1732815405887,0.152,95233.0,95232.0,0.08943127]
[1732815406126,0.151,95233.0,95232.0,0.08943127]
[1732815406344,0.002,95233.0,95232.0,0.08943127]
[1732815406582,0.002,95233.0,95232.0,0.24293727]
[1732815406807,0.001,95233.0,95232.0,0.24293727]
[1732815407057,0.01237037,95240.0,95235.0,0.105002]
[1732815407303,0.01237037,95240.0,95236.0,0.105001]
[1732815407584,0.11736837,95240.0,95237.0,0.00656947]
[1732815407823,0.023,95239.0,95234.0,0.09414935]
[1732815408065,0.001724,95245.0,95239.0,0.104998]
[1732815408066,0.104993,95244.0,95239.0,0.104998]
[1732815408298,0.001724,95245.0,95240.0,0.00656888]
[1732815408507,0.001724,95245.0,95241.0,0.00656888]
[1732815408508,0.01239068,95244.0,95241.0,0.00656888]
[1732815408745,0.104993,95244.0,95242.0,0.00656875]
[1732815408957,0.104993,95244.0,95240.0,0.104997]
[1732815409176,0.104993,95244.0,95241.0,0.00656875]
[1732815409404,0.001724,95245.0,95240.0,0.104997]
[1732815409624,0.001724,95245.0,95241.0,0.00656874]
[1732815409842,0.001,95244.0,95241.0,0.104996]
[1732815410095,0.001,95244.0,95238.0,0.21]
[1732815410096,0.001,95244.0,95239.0,0.104998]
[1732815410308,0.11926339,95245.0,95240.0,0.00656874]
[1732815410755,0.12026339,95245.0,95241.0,0.00656874]
[1732815411009,0.12026339,95245.0,95239.0,0.104998]
[1732815411251,0.12026339,95245.0,95240.0,0.00656876]
[1732815411473,0.105994,95244.0,95241.0,0.00656876]
[1732815411695,0.001,95244.0,95240.0,0.104997]
[1732815412135,0.12026239,95245.0,95240.0,0.104997]
[1732815412379,0.01527039,95245.0,95237.0,0.09411556]
[1732815412600,0.105001,95237.0,95236.0,0.09411556]
[1732815412826,0.01427039,95245.0,95236.0,0.10068432]
[1732815413063,0.104997,95241.0,95237.0,0.00656876]
[1732815413297,0.104997,95241.0,95238.0,0.00656876]
[1732815413521,0.104997,95241.0,95239.0,0.00656876]
[1732815413734,0.104997,95241.0,95240.0,0.00656876]
[1732815415596,0.209986,95244.0,95236.0,0.09409843]
[1732815415810,0.104998,95240.0,95237.0,0.00656879]
[1732815416038,0.104998,95240.0,95238.0,0.00656879]
[1732815416275,0.104998,95240.0,95239.0,0.00656879]
[1732815418303,0.277998,95240.0,95239.0,0.00656879]
[1732815418522,0.277998,95240.0,95232.0,0.0008618]
[1732815418523,0.105005,95233.0,95232.0,0.0008618]
[1732815418753,0.105005,95233.0,95232.0,0.00743103]
[1732815418971,0.105005,95233.0,95232.0,0.0008618]
[1732815419194,0.105005,95233.0,95232.0,0.00743108]
[1732815419859,0.106005,95233.0,95232.0,0.00943108]
[1732815420331,0.106005,95233.0,95232.0,0.00743108]
[1732815421469,0.23185021,95233.0,95232.0,0.00743108]
[1732815421719,0.30725021,95233.0,95232.0,0.0008618]
[1732815422604,0.23185021,95233.0,95232.0,0.0008618]
[1732815422824,0.013575,95233.0,95232.0,0.0008618]
[1732815422998,0.013575,95233.0,95232.0,0.00743116]
[1732815423641,0.11858,95233.0,95232.0,0.00743116]
[1732815424521,0.013575,95233.0,95232.0,0.00743116]
[1732815424736,0.012575,95233.0,95232.0,0.00743116]
[1732815424949,0.012575,95233.0,95232.0,0.00743111]
[1732815425172,0.105005,95234.0,95232.0,0.0018618]
[1732815425401,0.105005,95234.0,95232.0,0.0074311]
[1732815425614,0.105005,95234.0,95233.0,0.0065693]
[1732815427907,0.105004,95234.0,95233.0,0.0065693]
[1732815428558,0.01232215,95237.0,95232.0,0.0008618]
[1732815428790,0.105005,95233.0,95232.0,0.0008618]
[1732815429310,0.105005,95233.0,95232.0,0.00743115]
[1732815429502,0.105005,95233.0,95232.0,0.0008618]
[1732815429971,0.105005,95233.0,95232.0,0.00743116]
[1732815430202,0.107005,95233.0,95232.0,0.00743116]
[1732815431095,0.002,95233.0,95232.0,0.00743116]
[1732815431311,0.107005,95233.0,95232.0,0.00743116]
[1732815431544,0.002,95233.0,95232.0,0.00743116]
[1732815431762,0.002,95233.0,95232.0,0.0008618]
[1732815432193,0.105005,95233.0,95232.0,0.0008618]
[1732815432408,0.210002,95237.0,95232.0,0.00743116]
[1732815432645,0.105004,95235.0,95232.0,0.0008618]
[1732815432874,0.173,95238.0,95232.0,0.0008618]
[1732815433157,0.173,95238.0,95233.0,0.11157417]
[1732815433376,0.01234225,95239.0,95234.0,0.00656917]
[1732815433601,0.105004,95234.0,95233.0,0.09401774]
[1732815433814,0.001,95237.0,95233.0,0.11109672]
[1732815434028,0.105003,95235.0,95234.0,0.00656884]
[1732815434448,0.105003,95235.0,95234.0,0.01707901]
[1732815434868,0.108003,95235.0,95234.0,0.01707901]
[1732815435312,0.105003,95235.0,95234.0,0.01707901]
[1732815436048,0.105003,95235.0,95234.0,0.01807901]
[1732815436953,0.105003,95235.0,95234.0,0.00756884]
[1732815437620,0.105003,95235.0,95234.0,0.001]
[1732815437621,0.278003,95235.0,95234.0,0.001]
[1732815438338,0.105005,95233.0,95232.0,0.0008618]
[1732815438566,0.128005,95233.0,95232.0,0.0008618]
[1732815439251,0.23085021,95233.0,95232.0,0.0008618]
[1732815439991,0.28055021,95233.0,95232.0,0.0008618]
[1732815440230,0.36255021,95233.0,95232.0,0.0008618]
[1732815440473,0.36455021,95233.0,95232.0,0.0008618]
[1732815440988,0.51455021,95233.0,95232.0,0.0008618]
[1732815441228,0.51755021,95233.0,95232.0,0.0008618]
[1732815441468,0.5270061,95233.0,95232.0,0.0008618]
[1732815441970,0.5310061,95233.0,95232.0,0.0008618]
[1732815442209,0.5290061,95233.0,95232.0,0.0008618]
[1732815442638,0.5310061,95233.0,95232.0,0.0008618]
[1732815456318,0.56310517,95233.0,95232.0,0.0008618]
[1732815456533,0.5310061,95233.0,95232.0,0.0008618]
[1732815456959,0.56310023,95233.0,95232.0,0.0008618]
[1732815457624,0.5310061,95233.0,95232.0,0.0008618]
[1732815457860,0.56310081,95233.0,95232.0,0.0008618]
[1732815458392,0.4813061,95233.0,95232.0,0.0008618]
[1732815461824,0.3993061,95233.0,95232.0,0.0008618]
[1732815462910,0.3973061,95233.0,95232.0,0.0008618]
[1732815463766,0.3933061,95233.0,95232.0,0.0008618]
[1732815464210,0.3953061,95233.0,95232.0,0.0008618]
[1732815464634,0.3973061,95233.0,95232.0,0.0008618]
[1732815464859,0.3933061,95233.0,95232.0,0.0008618]
[1732815465070,0.3953061,95233.0,95232.0,0.0008618]
[1732815465309,0.3983061,95233.0,95232.0,0.0008618]
[1732815470804,0.29546089,95233.0,95232.0,0.0008618]
[1732815472799,0.29546089,95233.0,95232.0,0.1058678]
[1732815472800,0.005,95233.0,95232.0,0.1058678]
[1732815473091,0.005,95233.0,95232.0,0.20638542]
[1732815473334,0.005,95233.0,95232.0,0.11243718]
[1732815473560,0.254999,95239.0,95232.0,0.10135742]
[1732815473795,0.01226129,95234.0,95233.0,0.20550062]
[1732815474025,0.15,95239.0,95235.0,0.105003]
[1732815474259,0.104999,95239.0,95233.0,0.30393724]
[1732815474475,0.104999,95239.0,95234.0,0.11157292]
[1732815474698,0.104999,95239.0,95233.0,0.30393724]
[1732815474915,0.105999,95239.0,95234.0,0.00656892]
[1732815475139,0.105999,95239.0,95233.0,0.40894124]
[1732815475140,0.105999,95239.0,95233.0,0.40994124]
[1732815475368,0.104999,95239.0,95233.0,0.40894124]
[1732815475608,0.104999,95239.0,95234.0,0.00656892]
[1732815475609,0.11730513,95239.0,95234.0,0.00656892]
[1732815475840,0.210002,95237.0,95233.0,0.09392624]
[1732815476084,0.210002,95237.0,95232.0,0.0008618]
[1732815476085,0.105005,95233.0,95232.0,0.0008618]
[1732815476304,0.208305,95233.0,95232.0,0.0008618]
[1732815477451,0.208305,95233.0,95232.0,0.0018618]
[1732815477713,0.208305,95233.0,95232.0,0.0028618]
[1732815478406,0.208305,95233.0,95232.0,0.0018618]
[1732815478630,0.209305,95233.0,95232.0,0.0018618]
[1732815478867,0.209305,95233.0,95232.0,0.0008618]
[1732815479952,0.208305,95233.0,95232.0,0.0008618]
[1732815480171,0.212305,95233.0,95232.0,0.0008618]
[1732815480423,0.210305,95233.0,95232.0,0.0008618]
[1732815480638,0.208305,95233.0,95232.0,0.0008618]
[1732815480891,0.210305,95233.0,95232.0,0.0008618]
[1732815481108,0.211305,95233.0,95232.0,0.0008618]
[1732815482335,0.20885742,95233.0,95232.0,0.0008618]
[1732815485714,0.46170263,95233.0,95232.0,0.0008618]
[1732815485955,0.50680263,95233.0,95232.0,0.0008618]
[1732815486396,0.54890199,95233.0,95232.0,0.0008618]
[1732815486634,0.54790199,95233.0,95232.0,0.0008618]
[1732815487103,0.54990199,95233.0,95232.0,0.0008618]
[1732815487546,0.55590199,95233.0,95232.0,0.0018618]
[1732815489073,0.54590199,95233.0,95232.0,0.0018618]
[1732815493524,0.55137952,95233.0,95232.0,0.0018618]
[1732815494900,0.55310272,95233.0,95232.0,0.0018618]
[1732815498159,0.52100336,95233.0,95232.0,0.0018618]
[1732815498366,0.55307359,95233.0,95232.0,0.0018618]
[1732815499970,0.52100336,95233.0,95232.0,0.0018618]
[1732815501078,0.54758983,95233.0,95232.0,0.0018618]
[1732815501762,0.21712583,95233.0,95232.0,0.0018618]
[1732815502531,0.11028062,95233.0,95232.0,0.0018618]
[1732815502759,0.11428062,95233.0,95232.0,0.0018618]
[1732815503197,0.11028062,95233.0,95232.0,0.0008618]
[1732815503425,0.10428062,95233.0,95232.0,0.0008618]
[1732815503644,0.27928062,95233.0,95232.0,0.0008618]
[1732815503881,0.0267232,95233.0,95232.0,0.0008618]
[1732815504096,0.1297282,95233.0,95232.0,0.0008618]
[1732815504547,0.1317282,95233.0,95232.0,0.0008618]
[1732815504763,0.1367282,95233.0,95232.0,0.0008618]
[1732815504957,0.0087232,95233.0,95232.0,0.0008618]
[1732815505163,0.0037232,95233.0,95232.0,0.0008618]
[1732815505371,0.1087282,95233.0,95232.0,0.0008618]
[1732815505570,0.1117282,95233.0,95232.0,0.0008618]
[1732815505795,0.1097282,95233.0,95232.0,0.0008618]
[1732815506220,0.1127282,95233.0,95232.0,0.0008618]
[1732815506434,0.1077282,95233.0,95232.0,0.0008618]
[1732815506638,0.1067282,95233.0,95232.0,0.0008618]
[1732815506842,0.1077282,95233.0,95232.0,0.0008618]
[1732815507464,0.1067282,95233.0,95232.0,0.0008618]
[1732815507691,0.0027232,95233.0,95232.0,0.0008618]
[1732815507894,0.0037232,95233.0,95232.0,0.1058678]
[1732815508112,0.0027232,95233.0,95232.0,0.2328678]
[1732815508321,0.0027232,95233.0,95232.0,0.1278618]
[1732815508531,0.0037232,95233.0,95232.0,0.1278618]
[1732815508746,0.0027232,95233.0,95232.0,0.1278618]
[1732815509368,0.0017232,95233.0,95232.0,0.1278618]
[1732815509795,0.0017232,95233.0,95232.0,0.1298618]
[1732815509796,0.0027232,95233.0,95232.0,0.1298618]
[1732815510557,0.0017232,95233.0,95232.0,0.1298618]
[1732815511018,0.0017232,95233.0,95232.0,0.1308618]
[1732815511717,0.0017232,95233.0,95232.0,0.2358678]
[1732815518094,0.0017232,95233.0,95232.0,0.24243634]
[1732815520257,0.0017232,95233.0,95232.0,0.2358678]
[1732815520935,0.0017232,95233.0,95232.0,0.24243631]
[1732815521164,0.0017232,95233.0,95232.0,0.2358678]
[1732815522684,0.0017232,95233.0,95232.0,0.32967692]
[1732815523164,0.0017232,95233.0,95232.0,0.34528117]
[1732815523372,0.0017232,95233.0,95232.0,0.35778561]
[1732815523601,0.0017232,95233.0,95232.0,0.36829432]
[1732815524078,0.0017232,95233.0,95232.0,0.36729229]
[1732815524286,0.0017232,95233.0,95232.0,0.26244708]
[1732815524504,0.0017232,95233.0,95232.0,0.23943596]
[1732815524736,0.0017232,95233.0,95232.0,0.24843596]
[1732815524992,0.0017232,95233.0,95232.0,0.28407905]
[1732815525201,0.11925942,95233.0,95232.0,0.0098618]
[1732815525469,0.1067282,95233.0,95232.0,0.0008618]
[1732815525705,0.1067282,95233.0,95232.0,0.0048618]
[1732815525916,0.1067282,95233.0,95232.0,0.0078618]
[1732815526158,0.1067282,95233.0,95232.0,0.0008618]
[1732815526372,0.1067282,95233.0,95232.0,0.0038618]
[1732815526812,0.1067282,95233.0,95232.0,0.0028618]
[1732815527032,0.11916601,95233.0,95232.0,0.0028618]
[1732815527253,0.52541122,95233.0,95232.0,0.0028618]
[1732815527712,0.52541122,95233.0,95232.0,0.0008618]
[1732815528188,0.52741122,95233.0,95232.0,0.0008618]
[1732815546533,0.403314,95225.0,95224.0,0.00148009]
[1732815546763,0.50615921,95225.0,95224.0,0.00148009]
[1732815548416,0.50915921,95225.0,95224.0,0.00148009]
[1732815548728,0.51115921,95225.0,95224.0,0.00148009]
[1732815558324,0.46405921,95225.0,95224.0,0.00148009]
[1732815561466,0.38585921,95225.0,95224.0,0.00148009]
[1732815562623,0.23585921,95225.0,95224.0,0.00148009]
[1732815564005,0.38585921,95225.0,95224.0,0.00148009]
[1732815567409,0.43245921,95225.0,95224.0,0.00148009]
[1732815567606,0.51535921,95225.0,95224.0,0.00148009]
[1732815570795,0.54746548,95225.0,95224.0,0.00148009]
[1732815571216,0.51535921,95225.0,95224.0,0.00148009]
[1732815571712,0.54746779,95225.0,95224.0,0.00148009]
[1732815573756,0.65029925,95225.0,95224.0,0.00148009]
[1732815574403,0.54746779,95225.0,95224.0,0.00148009]
[1732815577053,0.47786779,95225.0,95224.0,0.00148009]
[1732815578358,0.50086779,95225.0,95224.0,0.00148009]
[1732815583092,0.54976779,95225.0,95224.0,0.00148009]
[1732815586765,0.25,95219.0,95206.0,0.0017236]
[1732815586959,0.278034,95207.0,95206.0,0.0017236]
[1732815587177,0.278034,95207.0,95196.0,0.18793398]
[1732815587178,0.105045,95197.0,95196.0,0.18793398]
[1732815587416,0.255048,95194.0,95191.0,0.09436699]
[1732815587637,0.38089321,95194.0,95191.0,0.09436699]
[1732815587848,0.38089321,95194.0,95191.0,0.0004]
[1732815588082,0.41304876,95194.0,95191.0,0.0004]
[1732815588722,0.41304876,95194.0,95193.0,0.2358673]
[1732815588931,0.42564302,95194.0,95193.0,0.2358673]
[1732815589150,0.39348747,95194.0,95193.0,0.2358673]
[1732815590768,0.47198747,95194.0,95193.0,0.15196277]
[1732815591009,0.47198747,95194.0,95193.0,0.08476123]
[1732815591010,0.55920714,95194.0,95193.0,0.08476123]
[1732815591457,0.59037019,95194.0,95193.0,0.08476123]
[1732815591678,0.62564555,95194.0,95193.0,0.08476123]
[1732815591906,0.62564555,95194.0,95193.0,0.08076123]
[1732815592125,0.62864555,95194.0,95193.0,0.08076123]
[1732815592344,0.6064825,95194.0,95193.0,0.08176123]
[1732815592984,0.63764555,95194.0,95193.0,0.001]
[1732815593450,0.63464555,95194.0,95193.0,0.001]
[1732815593879,0.63964555,95194.0,95193.0,0.001]
[1732815594185,0.11505,95192.0,95191.0,0.0004]
[1732815594405,0.11505,95192.0,95173.0,0.0017234]
[1732815594406,0.25507,95174.0,95173.0,0.0017234]
[1732815594693,0.38091521,95174.0,95173.0,0.0017234]
[1732815594917,0.56982143,95174.0,95173.0,0.0017234]
[1732815595135,0.53775362,95174.0,95173.0,0.0017234]
[1732815595360,0.64058508,95174.0,95173.0,0.0017234]
[1732815595622,0.65703483,95174.0,95173.0,0.0017234]
[1732815595846,0.66103483,95174.0,95173.0,0.0017234]
[1732815597391,0.65703483,95174.0,95173.0,0.0017234]
[1732815597827,0.66603483,95174.0,95173.0,0.0027234]
[1732815598260,0.66403483,95174.0,95173.0,0.0027234]
[1732815598502,0.66403483,95174.0,95139.0,0.0792]
[1732815598503,0.105095,95152.0,95139.0,0.0792]
[1732815598719,0.105095,95152.0,95131.0,0.0004]
[1732815598720,0.39144971,95152.0,95133.0,0.0488]
[1732815598939,0.38094021,95152.0,95133.0,0.0488]
[1732815599868,0.40240679,95152.0,95133.0,0.0488]
[1732815600725,0.40240679,95152.0,95151.0,0.0014]
[1732815600935,0.40240679,95152.0,95151.0,0.0004]
[1732815601330,0.40540679,95152.0,95151.0,0.0004]
[1732815602307,0.50823825,95152.0,95151.0,0.0004]
[1732815602545,0.51023825,95152.0,95151.0,0.0004]
[1732815602754,0.40740679,95152.0,95151.0,0.0004]
[1732815603216,0.40740679,95152.0,95151.0,0.00053592]
[1732815603879,0.41990952,95152.0,95151.0,0.00053592]
[1732815606983,0.41990952,95152.0,95149.0,7.2e-07]
[1732815606984,0.105097,95150.0,95149.0,7.2e-07]
[1732815607239,0.2545,95137.0,95131.0,0.0004]
[1732815607482,0.278117,95132.0,95131.0,0.00036]
[1732815607701,0.105139,95112.0,95105.0,0.09371812]
[1732815607931,0.528141,95110.0,95109.0,0.14017551]
[1732815608150,0.63098621,95110.0,95109.0,0.02745747]
[1732815608380,0.63098621,95110.0,95105.0,0.09371812]
[1732815608381,0.255145,95106.0,95105.0,0.04271812]
[1732815608627,0.278153,95099.0,95079.0,0.28122934]
[1732815608880,0.64099821,95099.0,95079.0,0.28122934]
[1732815609100,0.74382967,95099.0,95077.0,0.0008619]
[1732815609550,0.74382967,95099.0,95098.0,0.8976626]
[1732815610972,0.75182967,95099.0,95098.0,0.8976626]
[1732815611399,0.64899821,95099.0,95098.0,0.8976626]
[1732815611626,0.66145811,95099.0,95098.0,0.8976626]
[1732815612328,0.66545811,95099.0,95098.0,0.8976626]
[1732815613455,0.278154,95098.0,95077.0,0.0008619]
[1732815613664,0.38099921,95098.0,95077.0,0.0008619]
[1732815613919,0.47392253,95098.0,95077.0,0.0008619]
[1732815614343,0.38099921,95098.0,95077.0,0.0008619]
[1732815614812,0.36199921,95098.0,95077.0,0.0008619]
[1732815615016,0.36999921,95098.0,95077.0,0.0008619]
[1732815615701,0.36599921,95098.0,95077.0,0.0008619]
[1732815616274,0.38899921,95098.0,95077.0,0.0008619]
[1732815616517,0.38099921,95098.0,95077.0,0.0008619]
[1732815616871,0.39199921,95098.0,95077.0,0.0008619]
[1732815617304,0.38799921,95098.0,95077.0,0.0008619]
[1732815617531,0.73010552,95098.0,95077.0,0.0008619]
[1732815617743,0.73410552,95098.0,95077.0,0.0008619]
[1732815617947,0.81070552,95098.0,95097.0,9e-07]
[1732815618188,0.81070552,95098.0,95091.0,1e-06]
[1732815618189,0.115161,95092.0,95091.0,1e-06]
[1732815618392,0.39100621,95092.0,95091.0,1e-06]
[1732815618622,0.39100621,95092.0,95082.0,0.4152137]
[1732815618623,0.528171,95083.0,95082.0,0.4152137]
[1732815618820,0.63101621,95083.0,95082.0,0.4152137]
[1732815619921,0.65181299,95083.0,95082.0,0.3952137]
[1732815620643,0.65881299,95083.0,95082.0,0.3952137]
[1732815621064,0.65181299,95083.0,95082.0,0.3952137]
[1732815621275,0.66081299,95083.0,95082.0,0.3952137]
[1732815621715,0.40981299,95083.0,95082.0,0.3952137]
[1732815621931,0.42259333,95083.0,95082.0,0.3952137]
[1732815622420,0.39959333,95083.0,95082.0,0.3952137]
[1732815623059,0.38779655,95083.0,95082.0,0.3952137]
[1732815623288,0.37879655,95083.0,95082.0,0.3952137]
[1732815623765,0.40279655,95083.0,95082.0,0.3952137]
[1732815623988,0.39979655,95083.0,95082.0,0.3962137]
[1732815624229,0.40879655,95083.0,95082.0,0.3962137]
[1732815624453,0.40879655,95083.0,95082.0,0.3952137]
[1732815624681,0.40279655,95083.0,95082.0,0.3952137]
[1732815624904,0.40779655,95083.0,95082.0,0.3952137]
[1732815628797,0.40279655,95083.0,95082.0,0.3952137]
[1732815629685,0.39379655,95083.0,95082.0,0.3952137]
[1732815629911,0.39379655,95083.0,95082.0,0.40179445]
[1732815630140,0.14095134,95083.0,95082.0,0.40179445]
[1732815630348,0.04078034,95083.0,95082.0,0.4201409]
[1732815630569,0.15495134,95083.0,95082.0,0.4201409]
[1732815630849,0.24379655,95083.0,95082.0,0.4201409]
[1732815631300,0.24579655,95083.0,95082.0,0.4201409]
[1732815631717,0.24479655,95083.0,95082.0,0.4201409]
[1732815632244,0.24479655,95083.0,95082.0,0.43266788]
[1732815632471,0.24579655,95083.0,95082.0,0.43353078]
[1732815632708,0.24479655,95083.0,95082.0,0.43353078]
[1732815632918,0.24479655,95083.0,95082.0,0.41047908]
[1732815633126,0.24479655,95083.0,95082.0,0.41066437]
[1732815633558,0.24679655,95083.0,95082.0,0.41066437]
[1732815633787,0.24479655,95083.0,95082.0,0.01545067]
[1732815634044,0.24479655,95083.0,95082.0,0.02597958]
[1732815634250,0.25179655,95083.0,95082.0,0.02597958]
[1732815634478,0.24579655,95083.0,95082.0,0.02597958]
[1732815634716,0.25179655,95083.0,95082.0,0.02597958]
[1732815635145,0.24979655,95083.0,95082.0,0.02597958]
[1732815635379,0.01878034,95083.0,95082.0,0.04170399]
[1732815635837,0.12395134,95083.0,95082.0,0.04170399]
[1732815636047,0.12095134,95083.0,95082.0,0.04170399]
[1732815636498,0.01878034,95083.0,95082.0,0.04170399]
[1732815636721,0.01578034,95083.0,95082.0,0.04947007]
[1732815636927,0.01578034,95083.0,95082.0,0.08800399]
[1732815637361,0.14395134,95083.0,95082.0,0.08900399]
[1732815637573,0.14395134,95083.0,95082.0,0.08800399]
[1732815637574,0.14095134,95083.0,95082.0,0.08800399]
[1732815638004,0.03578034,95083.0,95082.0,0.08800399]
[1732815638208,0.14095134,95083.0,95082.0,0.08800399]
[1732815638464,0.03578034,95083.0,95082.0,0.08800399]
[1732815638667,0.14095134,95083.0,95082.0,0.09200399]
[1732815638886,0.01278034,95083.0,95082.0,0.19717599]
[1732815639118,0.023,95089.0,95085.0,0.105168]
[1732815639331,0.128166,95087.0,95086.0,0.0406558]
[1732815641087,0.128166,95087.0,95086.0,0.0416558]
[1732815641961,0.173,95092.0,95086.0,0.02595772]
[1732815642166,0.233327,95090.0,95087.0,0.00784904]
[1732815642398,0.128166,95087.0,95086.0,0.002]
[1732815642611,0.128166,95087.0,95086.0,0.02697812]
[1732815643027,0.128166,95087.0,95086.0,0.02497812]
[1732815643896,0.128166,95087.0,95086.0,0.02497763]
[1732815644116,0.153,95092.0,95086.0,0.02597763]
[1732815644335,0.153,95092.0,95082.0,0.00104819]
[1732815644336,0.151,95092.0,95087.0,0.02497763]
[1732815644556,0.173,95092.0,95088.0,0.02497763]
[1732815644801,0.278161,95092.0,95089.0,0.02497763]
[1732815645005,0.105162,95091.0,95090.0,0.02497763]
[1732815645256,0.128162,95091.0,95090.0,0.01445019]
[1732815646304,0.128162,95091.0,95090.0,0.00657965]
[1732815646506,0.23100721,95091.0,95090.0,0.00657965]
[1732815646709,0.128171,95083.0,95082.0,0.00104819]
[1732815646973,0.23101621,95083.0,95082.0,0.00104819]
[1732815647109,0.38101621,95083.0,95082.0,0.00104819]
[1732815648080,0.38101621,95083.0,95082.0,0.00304819]
[1732815648710,0.48384767,95083.0,95082.0,0.00304819]
[1732815649170,0.56444767,95083.0,95082.0,0.00304819]
[1732815649402,0.343773,95081.0,95080.0,0.00027082]
[1732815649638,0.278198,95058.0,95055.0,0.0008622]
[1732815649860,0.38104321,95058.0,95055.0,0.0008622]
[1732815650956,0.38304321,95058.0,95055.0,0.0008622]
[1732815651206,0.38104321,95058.0,95055.0,0.0008622]
[1732815651420,0.3952405,95058.0,95055.0,0.0008622]
[1732815652559,0.3962405,95058.0,95055.0,0.0008622]
[1732815653041,0.3952405,95058.0,95055.0,0.0008622]
[1732815653310,0.3962405,95058.0,95055.0,0.0008622]
[1732815653513,0.3942405,95058.0,95055.0,0.0008622]
[1732815654030,0.3972405,95058.0,95055.0,0.0008622]
[1732815654232,0.3942405,95058.0,95055.0,0.0008622]
[1732815654467,0.3972405,95058.0,95055.0,0.0008622]
[1732815654705,0.3962405,95058.0,95055.0,0.0008622]
[1732815655281,0.3932405,95058.0,95055.0,0.0008622]
[1732815655503,0.3942405,95058.0,95055.0,0.0008622]
[1732815656218,0.3932405,95058.0,95055.0,0.0008622]
[1732815656677,0.3952405,95058.0,95055.0,0.0008622]
[1732815656917,0.3932405,95058.0,95055.0,0.0008622]
[1732815657175,0.3962405,95058.0,95055.0,0.0008622]
[1732815657415,0.3962405,95058.0,95057.0,0.0009215]
[1732815658352,0.3952405,95058.0,95057.0,0.0009215]
[1732815658824,0.3962405,95058.0,95057.0,0.0009215]
[1732815661892,0.29339529,95058.0,95057.0,0.0009215]
[1732815662131,0.14339529,95058.0,95057.0,0.0009215]
[1732815662364,0.03819729,95058.0,95057.0,0.0009215]
[1732815662586,0.14339529,95058.0,95057.0,0.0009215]
[1732815663053,0.14039529,95058.0,95057.0,0.0009215]
[1732815663267,0.14139529,95058.0,95057.0,0.00108967]
[1732815663727,0.03619729,95058.0,95057.0,0.00108967]
[1732815663993,0.001,95058.0,95057.0,0.10628967]
[1732815664252,0.001,95058.0,95057.0,0.15725143]
[1732815664495,0.001,95058.0,95057.0,0.23275143]
[1732815664735,0.001,95058.0,95057.0,0.23088967]
[1732815665158,0.0121617,95071.0,95059.0,0.210393]
[1732815665404,0.0121617,95071.0,95070.0,0.105185]
[1732815665649,0.105179,95076.0,95067.0,0.105188]
[1732815665858,0.105182,95073.0,95068.0,0.105187]
[1732815666308,0.105182,95073.0,95061.0,0.210391]
[1732815666309,0.21036,95075.0,95064.0,0.105191]
[1732815666539,0.105192,95065.0,95059.0,0.105197]
[1732815666800,0.233358,95076.0,95057.0,0.13068967]
[1732815666801,0.023,95073.0,95057.0,0.13068967]
[1732815667032,0.210389,95062.0,95057.0,0.12568967]
[1732815667268,0.105197,95060.0,95057.0,0.12568967]
[1732815667500,0.023,95074.0,95057.0,0.00108967]
[1732815667714,0.105198,95058.0,95057.0,0.00108967]
[1732815668420,0.105197,95060.0,95057.0,0.00108967]
[1732815668686,0.105185,95070.0,95057.0,0.00108967]
[1732815668880,0.023,95067.0,95058.0,0.105198]
[1732815669155,0.105195,95061.0,95057.0,0.00308967]
[1732815669381,0.105195,95061.0,95057.0,0.00108967]
[1732815669811,0.001,95060.0,95057.0,0.10928867]
[1732815670044,0.105195,95061.0,95057.0,0.10928867]
[1732815670317,0.210361,95075.0,95057.0,0.00108967]
[1732815670548,0.001,95061.0,95060.0,0.105196]
[1732815670784,0.105194,95062.0,95058.0,0.105198]
[1732815671022,0.001,95060.0,95057.0,0.10928867]
[1732815671268,0.001,95060.0,95057.0,0.00408967]
[1732815671984,0.106197,95060.0,95057.0,0.00108967]
[1732815672228,0.105198,95058.0,95057.0,0.00108967]
[1732815673441,0.105198,95058.0,95057.0,0.00208967]
[1732815673916,0.105198,95058.0,95057.0,0.00108967]
[1732815674881,0.128198,95058.0,95057.0,0.00108967]
[1732815676491,0.128198,95058.0,95057.0,0.00208967]
[1732815676992,0.105198,95058.0,95057.0,0.00108967]
[1732815677207,0.128198,95058.0,95057.0,0.00108967]
[1732815679417,0.01234821,95066.0,95057.0,0.10628867]
[1732815679634,0.105197,95060.0,95057.0,0.00108967]
[1732815679846,0.233384,95064.0,95057.0,0.00108967]
[1732815680322,0.105198,95059.0,95057.0,0.00108967]
[1732815680536,0.210386,95063.0,95057.0,0.00108967]
[1732815680747,0.105196,95061.0,95057.0,0.00108967]
[1732815681166,0.105198,95059.0,95057.0,0.00108967]
[1732815681380,0.105196,95060.0,95057.0,0.00108967]
[1732815681590,0.233384,95064.0,95057.0,0.00108967]
[1732815681820,0.105198,95058.0,95057.0,0.00108967]
[1732815682888,0.105197,95060.0,95057.0,0.00108967]
[1732815683572,0.105198,95059.0,95057.0,0.00108967]
[1732815685084,0.001,95060.0,95057.0,0.00108967]
[1732815685339,0.0017232,95071.0,95070.0,0.105185]
[1732815685547,0.0017232,95071.0,95057.0,0.08098967]
[1732815685753,0.0017232,95071.0,95058.0,0.00786614]
[1732815685957,0.0017232,95071.0,95067.0,0.105188]
[1732815686167,0.0017232,95071.0,95065.0,0.210381]
[1732815686382,0.0017232,95071.0,95066.0,0.00658049]
[1732815686623,0.0017232,95071.0,95065.0,0.210381]
[1732815686624,0.1069082,95071.0,95067.0,0.00658049]
[1732815686829,0.0027232,95071.0,95068.0,0.00658049]
[1732815687085,0.0027232,95071.0,95067.0,0.105188]
[1732815687295,0.0017232,95071.0,95068.0,0.00658035]
[1732815687502,0.0017232,95071.0,95062.0,0.210386]
[1732815687720,0.0017232,95071.0,95066.0,0.002]
[1732815687953,0.0017232,95071.0,95068.0,0.105186]
[1732815688626,0.0027232,95071.0,95070.0,0.105185]
[1732815688834,0.0017232,95071.0,95070.0,0.1117652]
[1732815689306,0.0027232,95071.0,95070.0,0.1117652]